Workbook

Sheet Inizio
B1: INFORMAZIONI SU QUESTO MODELLO
B2: Questa cartella di lavoro Budget evento consente di tenere traccia delle spese sostenute e dei ricavi ottenuti durante un evento.
B3: Immettere il nome dell'evento e i dettagli nelle tabelle nei fogli di lavoro Spese ed Ricavi.
B4: Il totale uscite e il totale entrate vengono calcolati automaticamente.
B5: Il riepilogo e il grafico dei profitti e delle perdite vengono aggiornati automaticamente nel foglio di lavoro Riepilogo.
B6: Nota:
B7: Nella colonna A di ciascun foglio di lavoro sono disponibili altre istruzioni. Questo testo è stato nascosto intenzionalmente. Per rimuovere il testo, selezionare la colonna A, quindi scegliere ELIMINA. Per visualizzare il testo, selezionare la colonna A, quindi modificare il colore del carattere.
B8: Per altre informazioni sulle tabelle, premere MAIUSC, quindi F10 in una tabella, selezionare l'opzione TABELLA, quindi selezionare TESTO ALTERNATIVO.

Sheet Spese
A1: Immettere le uscite stimate ed effettive per ogni categoria nelle rispettive tabelle in questo foglio di lavoro. Il totale delle uscite viene calcolato automaticamente. Nelle celle di questa colonna sono disponibili istruzioni utili per l'uso di questo foglio di lavoro. Freccia verso il basso per iniziare.
A2: Immettere il nome dell'evento nella cella a destra per personalizzare il titolo di questo e altri fogli di lavoro. | B2: Budget evento per Nome evento
A3: L'etichetta Uscite si trova nella cella G3. | G3: Uscite
A4: L'etichetta Stimate si trova nella cella G4 e l'etichetta Effettive nella cella H4. | G4: Stimate | H4: Effettive
A5: L'etichetta Totale uscite si trova nella cella a destra. Il totale uscite stimate viene calcolato automaticamente nella cella G5. Il totale uscite effettive e la barra dei dati che mostra il totale uscite effettive vengono aggiornati automaticamente nella cella H5. L'istruzione successiva si trova nella cella A7. | B5: Totale uscite | G5: =SUM(C12,C20,C26,C33,G12,G20,G25) -> € 1,145.00 | H5: =SUM(D12,D20,D26,D33,H12,H20,H25) -> € 395.00
A7: Immettere le spese relative al sito nella tabella a partire dalla cella a destra e le spese per i rinfreschi nella tabella a partire dalla cella F7. L'istruzione successiva si trova nella cella A14. | B7: Sito | C7: Stimate | D7: Effettive | F7: Rinfresco | G7: Stimate | H7: Effettive
B8: Spese per sala e hall | C8: € 500.00 | D8: € 250.00 | F8: Cibo
B9: Personale del sito | C9: € 400.00 | D9: € 50.00 | F9: Bevande
B10: Apparecchiature | F10: Biancheria da tavola
B11: Tavoli e sedie | F11: Personale e mance
B12: Totale | C12: =SUBTOTAL(109,SpeseRelativeAlSito[Stimate]) -> € 900.00 | D12: =SUBTOTAL(109,SpeseRelativeAlSito[Effettive]) -> € 300.00 | F12: Totale | G12: =SUBTOTAL(109,SpesePerIRinfreschi[Stimate]) -> € 0.00 | H12: =SUBTOTAL(109,SpesePerIRinfreschi[Effettive]) -> € 0.00
A14: Immettere le spese relative alle decorazioni nella tabella a partire dalla cella a destra e le spese per il programma nella tabella a partire dalla cella F14. L'istruzione successiva si trova nella cella A22. | B14: Decorazioni | C14: Stimate | D14: Effettive | F14: Programma | G14: Stimate | H14: Effettive
B15: Fiori | C15: € 200.00 | D15: € 50.00 | F15: Musicisti
B16: Candele | F16: Relatori
B17: Illuminazione | F17: Viaggio
B18: Palloncini | F18: Hotel
B19: Forniture carta | F19: Altro
B20: Totale | C20: =SUBTOTAL(109,SpeseRelativeAlleDecorazioni[Stimate]) -> € 200.00 | D20: =SUBTOTAL(109,SpeseRelativeAlleDecorazioni[Effettive]) -> € 50.00 | F20: Totale | G20: =SUBTOTAL(109,SpesePerIlProgramma[Stimate]) -> € 0.00 | H20: =SUBTOTAL(109,SpesePerIlProgramma[Effettive]) -> € 0.00
A22: Immettere le spese relative alla pubblicità nella tabella a partire dalla cella a destra e le spese per i premi nella tabella a partire dalla cella F22. L'istruzione successiva si trova nella cella A28. | B22: Pubblicità | C22: Stimate | D22: Effettive | F22: Premi | G22: Stimate | H22: Effettive
B23: Grafica | C23: € 45.00 | D23: € 45.00 | F23: Nastri/targhe/coppe
B24: Fotocopie/stampa | F24: Regali
B25: Affrancatura | F25: Totale | G25: =SUBTOTAL(109,SpesePerIPremi[Stimate]) -> € 0.00 | H25: =SUBTOTAL(109,SpesePerIPremi[Effettive]) -> € 0.00
B26: Totale | C26: =SUBTOTAL(109,SpeseRelativeAllaPubblicità[Stimate]) -> € 45.00 | D26: =SUBTOTAL(109,SpeseRelativeAllaPubblicità[Effettive]) -> € 45.00
A28: Immettere le spese varie nella tabella a partire dalla cella a destra. | B28: Varie | C28: Stimate | D28: Effettive
B29: Telefono
B30: Trasporti
B31: Cancelleria
B32: Servizi fax
B33: Totale | C33: =SUBTOTAL(109,SpeseVarie[Stimate]) -> € 0.00 | D33: =SUBTOTAL(109,SpeseVarie[Effettive]) -> € 0.00

Sheet Ricavi
A1: Immettere le entrate stimate ed effettive per ogni categoria nelle rispettive tabelle in questo foglio di lavoro. Il totale delle entrate viene calcolato automaticamente. Nelle celle di questa colonna sono disponibili istruzioni utili per l'uso di questo foglio di lavoro. Freccia verso il basso per iniziare.
A2: Il nome dell'evento viene aggiornato automaticamente nella cella a destra. | B2: =Spese!B2 -> Budget evento per Nome evento
A3: L'etichetta Entrate si trova nella cella F3. | F3: Entrate
A4: L'etichetta Stimate si trova nella cella F4 e l'etichetta Effettive nella cella G4. | F4: Stimate | G4: Effettive
A5: L'etichetta Totale entrate si trova nella cella a destra. Il totale delle entrate stimate viene calcolato automaticamente nella cella F5. Il totale delle entrate effettive e la barra dei dati che mostra il totale delle entrate effettive vengono aggiornati automaticamente nella cella G5. | B5: Totale entrate | F5: =SUM(Ingressi[[#Totals],[Totale stimate]],AnnunciInProgramma[[#Totals],[Totale stimate]],EspositoriFornitori[[#Totals],[Totale stimate]],VenditaDiArticoli[[#Totals],[Totale stimate]]) -> € 1,936.00 | G5: =SUM(Ingressi[[#Totals],[Totale effettive]],AnnunciInProgramma[[#Totals],[Totale effettive]],EspositoriFornitori[[#Totals],[Totale effettive]],VenditaDiArticoli[[#Totals],[Totale effettive]]) -> € 1,831.00
A6: L'etichetta Ingressi si trova nella cella a destra. | B6: Ingressi
A7: Immettere il numero stimate ed effettive di ingressi con i costi dei biglietti nella tabella a partire dalla cella a destra. Le entrate stimate ed effettive derivanti dagli ingressi vengono calcolate automaticamente. L'istruzione successiva si trova nella cella A12. | B7: Stimate | C7: Effettive | D7: Tipo | E7: Prezzo | F7: Totale stimate | G7: Totale effettive
B8: 300 | C8: 278 | D8: Adulti | E8: € 5.00 | F8: =B8*E8 -> € 1,500.00 | G8: =C8*E8 -> € 1,390.00
B9: 197 | C9: 195 | D9: Bambini | E9: € 2.00 | F9: =B9*E9 -> € 394.00 | G9: =C9*E9 -> € 390.00
B10: 42 | C10: 51 | D10: Altro | E10: € 1.00 | F10: € 42.00 | G10: € 51.00
F11: =SUBTOTAL(109,Ingressi[Totale stimate]) -> € 1,936.00 | G11: =SUBTOTAL(109,Ingressi[Totale effettive]) -> € 1,831.00
A12: L'etichetta Annunci in programma si trova nella cella a destra. | B12: Annunci in programma
A13: Immettere il numero stimate ed effettive di annunci in programma con le relative tariffe nella tabella a partire dalla cella a destra. Le entrate stimate ed effettive derivanti dagli annunci vengono calcolate automaticamente. L'istruzione successiva si trova nella cella A18. | B13: Stimate | C13: Effettive | D13: Tipo | E13: Prezzo | F13: Totale stimate | G13: Totale effettive
D14: Copertine | F14: =B14*E14 -> € 0.00 | G14: =C14*E14 -> € 0.00
D15: Mezze pagine | F15: =B15*E15 -> € 0.00 | G15: =C15*E15 -> € 0.00
D16: Quarti di pagina | F16: € 0.00 | G16: € 0.00
F17: =SUBTOTAL(109,AnnunciInProgramma[Totale stimate]) -> € 0.00 | G17: =SUBTOTAL(109,AnnunciInProgramma[Totale effettive]) -> € 0.00
A18: L'etichetta Espositori/fornitori si trova nella cella a destra. | B18: Espositori/fornitori
A19: Immettere il numero stimate ed effettive di espositori o fornitori con le tariffe degli stand nella tabella a partire dalla cella a destra. Le entrate stimate ed effettive vengono calcolate automaticamente. L'istruzione successiva si trova nella cella A24. | B19: Stimato | C19: Effettive | D19: Tipo | E19: Prezzo | F19: Totale stimate | G19: Totale effettive
D20: Stand grandi | F20: =B20*E20 -> € 0.00 | G20: =C20*E20 -> € 0.00
D21: Stand medi | F21: =B21*E21 -> € 0.00 | G21: =C21*E21 -> € 0.00
D22: Stand piccoli | F22: € 0.00 | G22: € 0.00
F23: =SUBTOTAL(109,EspositoriFornitori[Totale stimate]) -> € 0.00 | G23: =SUBTOTAL(109,EspositoriFornitori[Totale effettive]) -> € 0.00
A24: L'etichetta Vendita di articoli si trova nella cella a destra. | B24: Vendita di articoli
A25: Immettere il numero stimate ed effettive di articoli venduti con i rispettivi prezzi nella tabella a partire dalla cella a destra. Le entrate stimate ed effettive vengono calcolate automaticamente. | B25: Stimate | C25: Effettive | D25: Tipo | E25: Prezzo | F25: Totale stimate | G25: Totale effettive
D26: Articolo | F26: =B26*E26 -> € 0.00 | G26: =C26*E26 -> € 0.00
D27: Articolo | F27: =B27*E27 -> € 0.00 | G27: =C27*E27 -> € 0.00
D28: Articolo | F28: € 0.00 | G28: € 0.00
D29: Articolo | F29: € 0.00 | G29: € 0.00
F30: =SUBTOTAL(109,VenditaDiArticoli[Totale stimate]) -> € 0.00 | G30: =SUBTOTAL(109,VenditaDiArticoli[Totale effettive]) -> € 0.00

Sheet Riepilogo
A1: Il riepilogo e il grafico dei profitti e delle perdite che mostra il totale entrate e delle uscite vengono creati automaticamente in questo foglio di lavoro. Nelle celle di questa colonna sono disponibili istruzioni utili per l'uso di questo foglio di lavoro. Freccia verso il basso per iniziare.
A2: Il nome dell'evento viene aggiornato automaticamente nella cella a destra. | B2: =Spese!B2 -> Budget evento per Nome evento
A3: L'etichetta Riepilogo profitti-perdite si trova nella cella C3. L'istruzione successiva si trova nella cella A5. | C3: Riepilogo profitti-perdite
A5: La tabella dei totale che inizia nella cella a destra si aggiorna automaticamente. L'istruzione successiva si trova nella cella A9. | B5: Totale | C5: Stimate | D5: Effettive
B6: Totale entrate | C6: =Ricavi!F5 -> € 1,936.00 | D6: =Ricavi!G5 -> € 1,831.00
B7: Totale uscite | C7: =Spese!G5 -> € 1,145.00 | D7: =Spese!H5 -> € 395.00
B8: Totale profitto (o perdita) | C8: =C6-C7 -> € 791.00 | D8: =D6-D7 -> € 1,436.00
A9: L'istogramma a colonne raggruppate che mostra il confronto tra il totale entrate effettive e il totale uscite si trova nella cella a destra. | B9: L'istogramma a colonne raggruppate che mostra il confronto tra il totale entrate effettive e il totale uscite si trova in questa cella.
